bitfinex/quotes_SOLUSD_20241110
["timestamp","ask_amount","ask_price","bid_price","bid_amount"]
[1731216741818,20.1,207.39,207.36,32.62980234]
[1731216742219,0.1,207.37,207.36,32.62980234]
[1731216742623,11.6,207.39,207.35,32.62980234]
[1731216743237,11.7,207.39,207.35,32.62980234]
[1731216743440,11.6,207.39,207.37,32.62980234]
[1731216743616,11.6,207.39,207.3,32.62980234]
[1731216743617,11.7,207.39,207.38,32.62980234]
[1731216743818,11.7,207.39,207.36,32.62980234]
[1731216744117,11.6,207.39,207.36,32.62980234]
[1731216744528,11.6,207.39,207.38,32.62980234]
[1731216744733,6.5032,207.4,207.3,35.87225249]
[1731216745029,4.9757884,207.41,207.39,32.62980234]
[1731216745237,4.9757884,207.41,207.4,32.62980234]
[1731216745624,5.0757884,207.41,207.3,3.14245015]
[1731216745833,5.0757884,207.41,207.36,32.62980234]
[1731216746013,0.1,207.38,207.36,32.62980234]
[1731216746222,0.1,207.38,207.35,32.62980234]
[1731216746439,0.1,207.38,207.36,32.62980234]
[1731216746826,20.1,207.38,207.36,32.62980234]
[1731216747033,20.0,207.38,207.36,32.62980234]
[1731216747341,4.97134149,207.39,207.37,32.62980234]
[1731216747534,4.97134149,207.39,207.38,32.62980234]
[1731216747835,20.0,207.44,207.38,32.62980234]
[1731216748038,0.1,207.42,207.38,32.62980234]
[1731216748234,5.06944227,207.42,207.38,32.62980234]
[1731216749518,4.96944227,207.42,207.38,32.62980234]
[1731216749719,20.0,207.41,207.38,32.62980234]
[1731216750325,4.96944227,207.42,207.39,32.62980234]
[1731216750743,4.96944227,207.42,207.4,32.62980234]
[1731216751047,20.0,207.41,207.39,32.62980234]
[1731216751542,20.0,207.41,207.27,15.9131]
[1731216751543,0.1,207.38,207.22,0.1]
[1731216751739,20.0,207.35,207.28,32.62980234]
[1731216752042,20.0,207.35,207.3,32.62980234]
[1731216752429,20.0,207.37,207.3,32.62980234]
[1731216752635,32.62980234,207.37,207.3,32.62980234]
[1731216752831,52.62980234,207.36,207.29,32.62980234]
[1731216753340,32.62980234,207.36,207.29,32.62980234]
[1731216753529,20.0,207.35,207.29,32.62980234]
[1731216753728,20.0,207.35,207.3,32.62980234]
[1731216753944,29.22635134,207.4,207.22,15.9131]
[1731216753945,53.92350234,207.4,207.33,32.62980234]
[1731216754155,6.1267,207.4,207.35,37.42380234]
[1731216754450,32.62980234,207.4,207.35,4.794]
[1731216754622,0.1,207.39,207.32,32.62980234]
[1731216754826,32.62980234,207.38,207.31,32.62980234]
[1731216755050,32.62980234,207.38,207.31,4.794]
[1731216755226,32.62980234,207.37,207.31,4.794]
[1731216755425,32.62980234,207.39,207.32,32.62980234]
[1731216755626,32.62980234,207.37,207.31,4.794]
[1731216755827,20.0,207.36,207.31,37.42380234]
[1731216756041,20.0,207.38,207.32,32.62980234]
[1731216756746,20.0,207.41,207.35,32.62980234]
[1731216757125,37.59924461,207.42,207.35,37.42380234]
[1731216757126,4.96944227,207.42,207.35,37.42380234]
[1731216757422,100.0,207.38,207.35,32.62980234]
[1731216757733,100.0,207.38,207.34,32.62980234]
[1731216757935,100.0,207.38,207.33,32.62980234]
[1731216760330,100.0,207.38,207.34,32.62980234]
[1731216760652,100.0,207.38,207.29,7.89771475]
[1731216760653,100.0,207.38,207.36,32.62980234]
[1731216760831,100.0,207.38,207.37,32.62980234]
[1731216761455,100.0,207.38,207.36,32.62980234]
[1731216761639,100.0,207.38,207.37,32.62980234]
[1731216761838,97.471,207.38,207.37,32.62980234]
[1731216762147,91.885,207.38,207.37,32.62980234]
[1731216762349,86.98700001,207.38,207.37,32.62980234]
[1731216762525,38.55461502,207.38,207.37,32.62980234]
[1731216762728,6.2104,207.51,207.41,0.1]
[1731216762952,32.62980234,207.52,207.45,32.62980234]
[1731216763129,4.96217019,207.51,207.45,32.62980234]
[1731216763330,37.59197253,207.51,207.43,32.62980234]
[1731216763547,37.59197253,207.51,207.44,32.62980234]
[1731216764933,20.0,207.5,207.45,32.62980234]
[1731216765134,4.96217019,207.51,207.45,32.62980234]
[1731216765135,24.96217019,207.51,207.45,32.62980234]
[1731216765646,24.96217019,207.51,207.42,0.1]
[1731216765647,24.96217019,207.51,207.44,32.62980234]
[1731216766031,57.69197253,207.51,207.44,32.62980234]
[1731216766231,52.62980234,207.49,207.42,32.62980234]
[1731216766437,20.0,207.49,207.44,32.62980234]
[1731216767170,20.0,207.5,207.43,32.62980234]
[1731216767533,32.62980234,207.5,207.43,32.62980234]
[1731216767735,32.62980234,207.46,207.38,32.62980234]
[1731216767978,52.62980234,207.49,207.42,32.62980234]
[1731216768437,20.0,207.49,207.43,32.62980234]
[1731216768640,20.0,207.49,207.44,32.62980234]
[1731216769251,20.0,207.5,207.44,32.62980234]
[1731216769453,32.62980234,207.57,207.49,32.62980234]
[1731216769660,32.62980234,207.58,207.5,32.62980234]
[1731216769953,32.62980234,207.57,207.49,32.62980234]
[1731216770464,32.62980234,207.56,207.49,32.62980234]
[1731216770658,32.62980234,207.54,207.47,32.62980234]
[1731216771353,0.1,207.57,207.44,3.02253421]
[1731216771354,52.62980234,207.53,207.46,32.62980234]
[1731216771541,52.62980234,207.53,207.47,32.62980234]
[1731216771542,20.0,207.53,207.47,32.62980234]
[1731216771749,32.62980234,207.56,207.49,32.62980234]
[1731216772262,32.62980234,207.54,207.47,32.62980234]
[1731216772440,32.62980234,207.6,207.41,20.0]
[1731216772441,32.62980234,207.57,207.5,32.62980234]
[1731216772643,20.0,207.57,207.51,32.62980234]
[1731216772942,32.62980234,207.6,207.53,32.62980234]
[1731216773158,32.62980234,207.6,207.52,32.62980234]
[1731216773460,32.62980234,207.58,207.5,32.62980234]
[1731216774159,32.62980234,207.56,207.49,32.62980234]
[1731216774359,20.0,207.55,207.49,32.62980234]
[1731216774663,32.62980234,207.55,207.48,32.62980234]
[1731216774870,32.62980234,207.54,207.47,32.62980234]
[1731216775160,20.0,207.52,207.46,32.62980234]
[1731216775857,32.62980234,207.52,207.46,32.62980234]
[1731216776069,20.0,207.51,207.46,32.62980234]
[1731216776561,20.0,207.52,207.46,32.62980234]
[1731216776866,20.0,207.52,207.47,32.62980234]
[1731216777285,20.0,207.54,207.49,32.62980234]
[1731216777563,32.62980234,207.57,207.5,37.42380234]
[1731216777973,32.62980234,207.56,207.5,4.794]
[1731216778263,32.62980234,207.58,207.51,32.62980234]
[1731216778481,1.60713561,207.6,207.57,32.62980234]
[1731216778644,32.62980234,207.71,207.6,0.1]
[1731216778839,32.62980234,207.72,207.65,32.62980234]
[1731216779062,32.62980234,207.75,207.68,32.62980234]
[1731216779251,32.62980234,207.76,207.68,32.62980234]
[1731216779450,32.62980234,207.76,207.69,4.794]
[1731216779667,32.62980234,207.75,207.69,4.794]
[1731216779965,32.62980234,207.74,207.68,4.794]
[1731216780369,32.62980234,207.74,207.65,0.1]
[1731216780370,32.62980234,207.71,207.65,4.794]
[1731216780548,52.62980234,207.69,207.65,4.794]
[1731216780750,32.62980234,207.7,207.66,0.1]
[1731216780949,32.62980234,207.72,207.65,37.42380234]
[1731216781248,6.0237,207.78,207.65,37.42380234]
[1731216781249,32.62980234,207.73,207.66,32.72980234]
[1731216781658,32.62980234,207.75,207.67,32.62980234]
[1731216781868,32.62980234,207.7,207.64,4.794]
[1731216782371,32.62980234,207.71,207.63,32.62980234]
[1731216782865,32.62980234,207.7,207.63,32.62980234]
[1731216783071,32.62980234,207.69,207.62,32.62980234]
[1731216783248,0.1,207.73,207.58,0.1]
[1731216783249,32.62980234,207.65,207.58,32.72980234]
[1731216783447,32.62980234,207.64,207.57,15.8844]
[1731216783651,32.62980234,207.63,207.57,15.8844]
[1731216783850,32.62980234,207.64,207.57,48.51420234]
[1731216784061,20.0,207.64,207.57,48.51420234]
[1731216784248,52.62980234,207.64,207.57,15.8844]
[1731216784566,32.62980234,207.61,207.54,3.20893267]
[1731216784873,20.0,207.64,207.56,32.62980234]
[1731216785170,32.62980234,207.62,207.55,32.62980234]
[1731216785347,32.62980234,207.58,207.51,32.62980234]
[1731216785549,32.62980234,207.59,207.52,32.62980234]
[1731216785762,32.62980234,207.59,207.51,32.62980234]
[1731216785963,32.62980234,207.59,207.51,32.72980234]
[1731216786168,52.62980234,207.63,207.55,32.62980234]
[1731216786470,32.62980234,207.65,207.57,32.62980234]
[1731216786647,32.62980234,207.64,207.57,32.62980234]
[1731216786846,52.62980234,207.65,207.59,0.1]
[1731216787051,32.62980234,207.66,207.59,0.1]
[1731216787457,32.62980234,207.62,207.56,0.1]
[1731216787674,32.62980234,207.63,207.56,32.72980234]
[1731216787869,32.62980234,207.64,207.56,32.72980234]
[1731216789452,32.62980234,207.64,207.57,32.62980234]
[1731216790180,32.62980234,207.65,207.58,32.62980234]
[1731216790371,32.62980234,207.64,207.57,32.62980234]
[1731216791057,32.62980234,207.64,207.56,32.72980234]
[1731216791254,32.62980234,207.63,207.56,32.62980234]
[1731216791455,32.62980234,207.62,207.55,32.62980234]
[1731216791657,32.62980234,207.61,207.54,32.72980234]
[1731216791860,32.62980234,207.55,207.48,32.62980234]
[1731216792061,32.62980234,207.55,207.48,35.67517944]
[1731216792268,32.62980234,207.55,207.48,32.62980234]
[1731216792467,32.62980234,207.54,207.47,38.69300234]
[1731216792758,32.62980234,207.52,207.45,35.74177692]
[1731216793578,32.62980234,207.52,207.43,0.1]
[1731216793579,32.62980234,207.48,207.42,32.62980234]
[1731216793771,32.62980234,207.51,207.46,0.1]
[1731216793980,32.62980234,207.52,207.46,0.1]
[1731216795173,32.62980234,207.53,207.46,32.72980234]
[1731216795367,32.62980234,207.56,207.48,32.72980234]
[1731216796063,32.62980234,207.55,207.47,32.62980234]
[1731216796261,32.62980234,207.54,207.47,32.62980234]
[1731216796463,32.62980234,207.55,207.47,32.62980234]
[1731216796863,32.62980234,207.54,207.47,32.62980234]
[1731216797081,32.62980234,207.55,207.48,0.1]
[1731216797281,32.62980234,207.55,207.48,32.72980234]
[1731216797586,32.62980234,207.56,207.48,32.72980234]
[1731216797967,32.62980234,207.57,207.49,32.62980234]
[1731216798166,32.62980234,207.58,207.5,32.72980234]
[1731216798371,4.945329,207.6,207.55,32.72980234]
[1731216798575,32.62980234,207.62,207.55,32.72980234]
[1731216799680,32.62980234,207.59,207.52,0.1]
[1731216799986,32.62980234,207.59,207.51,32.62980234]
[1731216800294,32.62980234,207.59,207.52,32.62980234]
[1731216800583,32.62980234,207.62,207.55,32.62980234]
[1731216800970,32.62980234,207.64,207.57,32.72980234]
[1731216801169,32.62980234,207.66,207.6,0.1]
[1731216801465,32.62980234,207.64,207.58,0.1]
[1731216803167,32.62980234,207.66,207.58,0.1]
[1731216804075,32.62980234,207.62,207.56,4.894]
[1731216804976,32.62980234,207.62,207.56,4.794]
[1731216805191,32.62980234,207.6,207.53,32.62980234]
[1731216805865,32.62980234,207.61,207.56,0.1]
[1731216806077,32.62980234,207.6,207.52,32.72980234]
[1731216806272,32.62980234,207.61,207.56,0.1]
[1731216806595,32.62980234,207.7,207.56,0.1]
[1731216806596,32.62980234,207.62,207.56,0.1]
[1731216806779,32.62980234,207.63,207.56,0.1]
[1731216806977,32.62980234,207.63,207.56,32.72980234]
[1731216807178,32.62980234,207.63,207.56,0.1]
[1731216807376,32.62980234,207.7,207.58,32.72980234]
[1731216807577,32.62980234,207.66,207.58,32.72980234]
[1731216807783,32.62980234,207.62,207.58,0.1]
[1731216807978,32.62980234,207.63,207.58,0.1]
[1731216808478,32.62980234,207.65,207.58,0.1]
[1731216808875,32.62980234,207.65,207.6,0.1]
[1731216809273,32.62980234,207.64,207.6,0.1]
[1731216810493,32.62980234,207.62,207.57,4.794]
[1731216810789,32.62980234,207.58,207.53,4.794]
[1731216811180,32.62980234,207.59,207.55,0.1]
[1731216811384,32.62980234,207.6,207.55,0.1]
[1731216811768,32.62980234,207.59,207.55,0.1]
[1731216811973,32.62980234,207.6,207.55,0.1]
[1731216812391,32.62980234,207.63,207.59,0.1]
[1731216812695,32.62980234,207.64,207.59,0.1]
[1731216813191,32.62980234,207.63,207.59,0.1]
[1731216813588,32.62980234,207.64,207.59,0.1]
[1731216813977,32.62980234,207.63,207.59,0.1]
[1731216814302,32.62980234,207.64,207.59,0.1]
[1731216814599,32.62980234,207.63,207.57,0.1]
[1731216815092,32.62980234,207.61,207.55,0.1]
[1731216815283,32.62980234,207.57,207.53,0.1]
[1731216815590,32.62980234,207.55,207.5,16.5396]
[1731216815794,32.62980234,207.52,207.46,15.4076]
[1731216815991,32.62980234,207.51,207.46,15.4076]
[1731216816294,32.62980234,207.51,207.44,4.794]
[1731216816599,32.62980234,207.49,207.44,4.794]
[1731216816775,32.62980234,207.48,207.41,48.13740234]
[1731216816971,32.62980234,207.47,207.41,15.5076]
[1731216817177,32.62980234,207.46,207.41,15.4076]
[1731216817409,32.62980234,207.46,207.41,20.2016]
[1731216817706,32.62980234,207.44,207.41,20.2016]
[1731216817999,32.62980234,207.42,207.35,18.50348478]
[1731216818195,32.62980234,207.4,207.35,15.5076]
[1731216818376,21.0748,207.49,207.35,15.5076]
[1731216818377,32.62980234,207.41,207.38,0.1]
[1731216818690,32.62980234,207.43,207.38,0.1]
[1731216818892,32.62980234,207.46,207.4,0.1]
[1731216819091,32.62980234,207.46,207.38,32.62980234]
[1731216819092,32.62980234,207.45,207.38,32.72980234]
[1731216819293,32.62980234,207.42,207.36,4.894]
[1731216819512,32.62980234,207.41,207.35,15.4076]
[1731216819990,32.62980234,207.41,207.36,0.1]
[1731216820395,32.62980234,207.4,207.34,0.1]
[1731216821281,32.62980234,207.39,207.34,0.1]
[1731216821678,32.62980234,207.41,207.33,37.42380234]
[1731216822174,37.58252972,207.41,207.33,37.42380234]
[1731216822386,32.62980234,207.4,207.33,4.794]
[1731216822584,32.62980234,207.39,207.33,4.794]
[1731216822805,4.95272738,207.41,207.33,4.794]
[1731216822806,32.62980234,207.4,207.33,37.42380234]
[1731216823100,32.62980234,207.4,207.34,4.794]
[1731216823604,4.95272738,207.41,207.34,4.794]
[1731216823793,32.62980234,207.39,207.34,4.794]
[1731216824098,4.95272738,207.41,207.33,4.794]
[1731216824099,32.62980234,207.4,207.33,4.794]
[1731216824283,32.62980234,207.4,207.33,37.42380234]
[1731216824483,32.62980234,207.4,207.33,4.794]
[1731216825085,32.62980234,207.4,207.34,4.794]
[1731216825289,37.58252972,207.41,207.34,37.42380234]
[1731216825995,32.62980234,207.39,207.34,4.794]
[1731216826190,37.58252972,207.41,207.34,37.42380234]
[1731216826583,4.95272738,207.41,207.35,4.794]
[1731216826797,32.62980234,207.39,207.35,4.794]
[1731216826989,32.62980234,207.38,207.32,0.1]
[1731216827174,4.95272738,207.41,207.31,37.42380234]
[1731216827175,32.62980234,207.35,207.31,4.794]
[1731216827698,32.62980234,207.35,207.29,4.794]
[1731216828025,32.62980234,207.34,207.29,4.794]
[1731216828200,32.62980234,207.33,207.29,4.794]
[1731216828395,32.62980234,207.31,207.27,4.794]
[1731216828576,32.62980234,207.3,207.25,4.794]
[1731216829291,32.62980234,207.26,207.19,0.1]
[1731216829596,32.62980234,207.27,207.22,0.1]
[1731216829993,32.62980234,207.25,207.18,0.1]
[1731216830203,6.1521,207.28,207.19,32.62980234]
[1731216830501,32.62980234,207.25,207.2,4.794]
[1731216830905,32.62980234,207.28,207.21,32.62980234]
[1731216831081,32.62980234,207.26,207.2,4.794]
[1731216831288,32.62980234,207.25,207.2,4.794]
[1731216831488,32.62980234,207.27,207.2,37.52380234]
[1731216832192,32.62980234,207.28,207.23,0.1]
[1731216832504,4.96221946,207.26,207.24,0.1]
[1731216832805,4.96221946,207.26,207.22,0.1]
[1731216832980,4.96221946,207.26,207.21,32.62980234]
[1731216833183,4.96221946,207.26,207.2,37.52380234]
[1731216833800,4.96221946,207.26,207.21,32.62980234]
[1731216834098,4.96221946,207.26,207.2,37.52380234]
[1731216834483,4.96221946,207.26,207.23,0.1]
[1731216834689,4.96221946,207.26,207.23,37.52380234]
[1731216834888,0.94617347,207.26,207.23,37.52380234]
[1731216835088,32.62980234,207.31,207.23,37.52380234]
[1731216835407,32.62980234,207.31,207.24,37.42380234]
[1731216836107,32.62980234,207.31,207.24,4.794]
[1731216836402,32.62980234,207.3,207.24,4.794]
[1731216836585,32.62980234,207.31,207.25,0.1]
[1731216837101,6.1521,207.34,207.24,37.42380234]
[1731216837102,32.62980234,207.29,207.24,4.794]
[1731216837302,0.1,207.36,207.27,0.1]
[1731216837303,32.62980234,207.32,207.27,0.1]
[1731216837804,32.62980234,207.3,207.24,4.794]
[1731216837995,32.62980234,207.3,207.23,4.894]
[1731216838390,32.62980234,207.29,207.23,4.894]
[1731216838693,32.62980234,207.28,207.23,4.894]
[1731216839082,32.62980234,207.28,207.23,0.1]
[1731216840184,32.62980234,207.28,207.22,4.794]
[1731216840379,32.62980234,207.28,207.21,4.894]
[1731216840597,32.62980234,207.27,207.21,0.1]
[1731216841888,32.62980234,207.29,207.21,32.72980234]
[1731216842084,32.62980234,207.28,207.23,0.1]
[1731216842390,32.62980234,207.3,207.25,0.1]
[1731216842788,32.62980234,207.27,207.21,0.1]
[1731216843098,32.62980234,207.26,207.21,0.1]
[1731216843498,32.62980234,207.25,207.21,0.1]
[1731216844505,32.62980234,207.26,207.22,0.1]
[1731216845397,32.62980234,207.25,207.22,0.1]
[1731216846106,32.62980234,207.24,207.2,0.1]
[1731216846494,32.62980234,207.28,207.24,0.1]
[1731216846798,32.62980234,207.31,207.28,0.1]
[1731216847005,32.62980234,207.35,207.31,0.1]
[1731216847598,10.79952971,207.44,207.37,0.1]
[1731216847794,32.62980234,207.41,207.37,0.1]
[1731216848197,32.62980234,207.39,207.35,0.1]
[1731216848497,4.95264387,207.41,207.32,37.44380234]
[1731216848498,32.62980234,207.36,207.33,0.1]
[1731216848986,32.62980234,207.36,207.29,32.62980234]
[1731216848987,32.62980234,207.36,207.31,0.1]
[1731216849399,32.62980234,207.32,207.25,0.1]
[1731216849604,0.22549,207.39,207.25,0.1]
[1731216849605,32.62980234,207.3,207.25,0.1]
[1731216849803,32.62980234,207.3,207.24,15.3778]
[1731216850308,32.62980234,207.31,207.24,52.82160234]
[1731216850491,32.62980234,207.3,207.25,0.1]
[1731216850692,32.62980234,207.3,207.27,0.1]
[1731216850895,32.62980234,207.32,207.27,0.1]
[1731216851397,32.62980234,207.34,207.31,0.1]
[1731216851593,32.62980234,207.35,207.31,0.1]
[1731216851993,32.62980234,207.34,207.29,0.1]
[1731216853202,32.62980234,207.33,207.27,4.914]
[1731216853399,32.62980234,207.3,207.27,0.1]
[1731216853711,32.62980234,207.28,207.19,3.2439714]
[1731216854012,32.62980234,207.2,207.14,0.1]
[1731216854312,32.62980234,207.15,207.12,0.36551101]
[1731216854489,32.62980234,207.13,207.12,0.26551101]
[1731216854691,40.14783435,207.13,207.12,0.26551101]
[1731216855213,87.18763669,207.13,207.12,0.26551101]
[1731216855416,87.41312669,207.13,207.12,0.26551101]
[1731216855910,0.1,207.01,207.0,2000.0]
[1731216856096,23.00574423,207.01,207.0,1988.45581534]
[1731216856415,88.26534891,207.01,207.0,1988.45581534]
[1731216856919,88.26534891,207.01,207.0,1856.97278267]
[1731216857214,88.26534891,207.01,207.0,1855.97278267]
[1731216857597,108.26534891,207.01,207.0,1855.97278267]
[1731216857916,88.26534891,207.01,207.0,1855.97278267]
[1731216858117,55.51005657,207.01,207.0,1855.97278267]
[1731216858614,60.59471429,207.01,207.0,1855.97278267]
[1731216858814,93.22451663,207.01,207.0,1855.97278267]
[1731216859591,113.22451663,207.01,207.0,1855.97278267]
[1731216860010,45.95922429,207.01,207.0,1855.97278267]
[1731216860401,8.37025423,207.01,207.0,1855.97278267]
[1731216860601,8.33817423,207.07,207.06,0.1]
[1731216860920,32.62980234,207.25,207.19,0.1]
[1731216861102,32.62980234,207.2,207.14,0.1]
[1731216861298,32.62980234,207.22,207.18,0.1]
[1731216861500,10.36140027,207.21,207.16,0.1]
[1731216861719,32.62980234,207.22,207.16,0.1]
[1731216861925,6.5723409,207.21,207.16,0.1]
[1731216862215,6.5723409,207.21,207.14,32.72980234]
[1731216862400,6.5723409,207.21,207.14,0.1]
[1731216862607,32.62980234,207.2,207.14,0.1]
[1731216863212,32.62980234,207.18,207.12,0.1]
[1731216863418,32.62980234,207.2,207.12,32.72980234]
[1731216863627,32.62980234,207.2,207.15,0.1]
[1731216863809,32.62980234,207.2,207.13,0.1]
[1731216864011,32.62980234,207.2,207.12,32.62980234]
[1731216864012,32.62980234,207.2,207.15,0.1]
[1731216864212,32.62980234,207.2,207.13,0.1]
[1731216864411,32.62980234,207.2,207.15,0.1]
[1731216864611,32.62980234,207.24,207.18,0.1]
[1731216865020,32.62980234,207.24,207.2,0.1]
[1731216865323,32.62980234,207.26,207.22,0.1]
[1731216865500,32.62980234,207.28,207.22,0.1]
[1731216866310,32.62980234,207.26,207.22,0.1]
[1731216866516,32.62980234,207.26,207.2,0.1]
[1731216867725,32.62980234,207.26,207.21,0.1]
[1731216868599,32.62980234,207.24,207.19,0.1]
[1731216869913,32.62980234,207.24,207.21,0.1]
[1731216870202,32.62980234,207.26,207.21,0.1]
[1731216870811,32.62980234,207.29,207.23,0.1]
[1731216872817,32.62980234,207.31,207.25,0.1]
[1731216873216,32.62980234,207.31,207.27,0.1]
[1731216875522,32.62980234,207.33,207.27,0.1]
[1731216875728,32.62980234,207.31,207.27,0.1]
[1731216875911,32.62980234,207.33,207.27,0.1]
[1731216876118,32.62980234,207.31,207.27,0.1]
[1731216876713,32.62980234,207.33,207.29,0.1]
[1731216876922,32.62980234,207.37,207.31,0.1]
[1731216877131,32.62980234,207.37,207.3,4.814]
[1731216877321,32.62980234,207.35,207.29,0.1]
[1731216877836,32.62980234,207.35,207.27,0.1]
[1731216878233,0.1,207.38,207.27,0.1]
[1731216878420,32.62980234,207.33,207.27,0.1]
[1731216879236,32.62980234,207.31,207.27,0.1]
[1731216882326,0.1,207.43,207.32,0.1]
[1731216882617,32.62980234,207.4,207.35,0.1]
[1731216885827,32.62980234,207.36,207.3,0.1]
[1731216886031,32.62980234,207.33,207.3,0.1]
[1731216886940,32.62980234,207.33,207.32,0.1]
[1731216887318,32.62980234,207.35,207.32,0.1]
[1731216887923,32.62980234,207.33,207.32,0.1]
[1731216892649,32.62980234,207.37,207.36,0.1]
[1731216893846,32.62980234,207.37,207.3,4.6456]
[1731216894144,32.62980234,207.34,207.3,4.6456]
[1731216895422,13.25061885,207.33,207.3,4.6456]
[1731216895619,32.62980234,207.34,207.3,4.6456]
[1731216897240,32.62980234,207.36,207.3,4.6456]
[1731216899740,32.62980234,207.34,207.3,4.6456]
[1731216900246,32.62980234,207.35,207.3,4.6456]
[1731216900452,32.62980234,207.38,207.31,48.28790234]
[1731216900828,32.62980234,207.38,207.31,15.6581]
[1731216901028,32.62980234,207.37,207.31,15.6581]
[1731216901428,32.62980234,207.35,207.31,15.6581]
[1731216901647,32.62980234,207.36,207.31,15.6581]
[1731216902140,32.62980234,207.35,207.31,15.6581]
[1731216902451,32.62980234,207.32,207.31,15.6581]
[1731216903078,32.62980234,207.32,207.23,15.6581]
[1731216903258,32.62980234,207.27,207.23,15.6581]
[1731216904134,32.62980234,207.24,207.23,15.6581]
[1731216904336,40.0038099,207.24,207.23,15.6581]
[1731216904851,40.0038099,207.24,207.12,54.82890234]
[1731216905152,32.62980234,207.18,207.12,22.1991]
[1731216905533,32.62980234,207.19,207.12,54.82890234]
[1731216905732,40.24214324,207.19,207.12,59.64290234]
[1731216906333,7.6123409,207.18,207.12,59.64290234]
[1731216908244,40.24214324,207.18,207.12,27.0131]
[1731216908552,32.62980234,207.19,207.12,59.64290234]
[1731216909554,32.62980234,207.18,207.12,27.0131]
[1731216912455,32.62980234,207.22,207.15,32.62980234]
[1731216912663,32.62980234,207.24,207.17,32.62980234]
[1731216912950,32.62980234,207.26,207.18,4.814]
[1731216913538,9.63519945,207.25,207.18,4.814]
[1731216913738,32.62980234,207.27,207.2,32.62980234]
[1731216914153,32.62980234,207.26,207.18,37.44380234]
[1731216914461,32.62980234,207.27,207.19,32.62980234]
[1731216915163,32.62980234,207.26,207.18,37.44380234]
[1731216915357,32.62980234,207.25,207.18,37.44380234]
[1731216915586,32.62980234,207.25,207.18,4.814]
[1731216916438,32.62980234,207.24,207.18,4.814]
[1731216916638,32.62980234,207.23,207.18,4.814]
[1731216916856,32.62980234,207.22,207.18,4.814]
[1731216917067,32.62980234,207.21,207.14,32.62980234]
[1731216917236,32.62980234,207.2,207.12,59.64290234]
[1731216917438,32.62980234,207.19,207.12,27.0131]
[1731216917639,7.57798912,207.19,207.12,59.64290234]
[1731216917938,32.62980234,207.2,207.13,32.62980234]
[1731216918654,32.62980234,207.22,207.15,37.44380234]
[1731216918861,32.62980234,207.25,207.18,32.62980234]
[1731216919036,32.62980234,207.26,207.18,32.62980234]
[1731216919437,32.62980234,207.25,207.18,32.62980234]
[1731216920045,32.62980234,207.21,207.16,4.814]
[1731216920846,7.57798912,207.2,207.16,4.814]
[1731216921044,7.57798912,207.2,207.15,4.814]
[1731216921245,32.62980234,207.21,207.15,4.814]
[1731216922354,32.62980234,207.23,207.16,37.44380234]
[1731216923258,32.62980234,207.23,207.16,4.814]
[1731216923475,32.62980234,207.23,207.15,4.814]
[1731216923956,32.62980234,207.21,207.15,4.814]
[1731216924554,0.1,207.38,207.18,4.814]
[1731216924868,32.62980234,207.26,207.18,4.814]
[1731216925378,32.62980234,207.24,207.18,4.814]
[1731216925671,32.62980234,207.24,207.16,4.814]
[1731216926277,32.62980234,207.22,207.16,4.814]
[1731216927860,32.62980234,207.22,207.13,37.44380234]
[1731216928476,32.62980234,207.2,207.13,4.814]
[1731216928770,32.62980234,207.18,207.13,4.814]
[1731216929273,32.62980234,207.2,207.13,4.814]
[1731216929881,32.62980234,207.18,207.13,4.814]
[1731216932466,32.62980234,207.18,207.12,15.6581]
[1731216933169,32.62980234,207.16,207.12,15.6581]
[1731216933358,32.62980234,207.14,207.12,15.6581]
[1731216933560,32.62980234,207.13,207.08,6.5967]
[1731216933762,32.62980234,207.12,207.08,6.5967]
[1731216935468,32.62980234,207.14,207.08,6.5967]
[1731216935872,32.62980234,207.12,207.08,6.5967]
[1731216936563,32.62980234,207.12,207.06,16.1648]
[1731216936762,32.62980234,207.08,207.06,16.1648]
[1731216936957,32.62980234,207.08,207.0,1855.97278267]
[1731216936958,32.62980234,207.08,207.0,1888.60258501]
[1731216937380,32.62980234,207.08,207.01,32.62980234]
[1731216937685,32.62980234,207.1,207.03,32.62980234]
[1731216937867,32.62980234,207.12,207.03,32.62980234]
[1731216938073,32.62980234,207.16,207.08,32.62980234]